bitfinex-derivatives/quotes_BTCF0:USTF0_20250905
["timestamp","ask_amount","ask_price","bid_price","bid_amount"]
[1757075596634,0.3608,112840.0,112810.0,1.683754]
[1757075596827,0.35025223,112860.0,112840.0,0.0886094]
[1757075597021,0.02052811,112860.0,112850.0,0.5]
[1757075597330,0.3608,112860.0,112850.0,0.5]
[1757075597536,0.02054257,112900.0,112870.0,0.0885903]
[1757075597726,0.02054257,112900.0,112850.0,0.25]
[1757075597727,0.33054257,112900.0,112860.0,0.3608]
[1757075597928,0.3608,112880.0,112850.0,0.3608]
[1757075598136,0.3608,112870.0,112840.0,0.3608]
[1757075598435,0.38134257,112900.0,112860.0,0.4493963]
[1757075598633,0.34054257,112900.0,112870.0,0.4493889]
[1757075598826,0.0205263,112930.0,112890.0,0.4493743]
[1757075599135,0.6613263,112930.0,112910.0,0.3608]
[1757075599328,0.6613263,112930.0,112890.0,0.3608]
[1757075599632,0.3608,112900.0,112860.0,2.07292]
[1757075599831,0.34,112900.0,112870.0,0.3608]
[1757075600032,0.3608,112890.0,112860.0,2.07292]
[1757075600227,0.3608,112880.0,112840.0,0.3608]
[1757075600527,0.32,112880.0,112840.0,0.3608]
[1757075600736,0.3608,112870.0,112830.0,0.4494215]
[1757075600928,0.7108,112870.0,112830.0,0.4494215]
[1757075601231,0.3608,112900.0,112860.0,0.4493976]
[1757075601433,0.3,112900.0,112880.0,0.3608]
[1757075601633,0.3,112900.0,112890.0,0.3608]
[1757075601931,0.3608,112920.0,112890.0,0.3608]
[1757075602130,0.3608,112910.0,112880.0,0.3608]
[1757075602330,0.3608,112900.0,112870.0,1.95596]
[1757075602538,0.3608,112890.0,112850.0,1.95596]
[1757075602836,0.3608,112880.0,112850.0,1.59516]
[1757075603031,0.3608,112870.0,112850.0,1.95596]
[1757075603227,0.33,112870.0,112840.0,0.3608]
[1757075603426,0.33,112870.0,112810.0,2.07292]
[1757075603427,0.3608,112850.0,112810.0,2.07292]
[1757075603632,0.3608,112840.0,112810.0,2.07292]
[1757075603842,0.3608,112870.0,112830.0,0.3608]
[1757075604136,0.3,112870.0,112850.0,0.3608]
[1757075604338,0.06,112870.0,112860.0,0.4493927]
[1757075604539,0.00019,112880.0,112870.0,0.0885849]
[1757075604728,0.00019,112880.0,112870.0,0.4493849]
[1757075604924,0.00019,112880.0,112870.0,0.3608]
[1757075605138,0.3608,112920.0,112870.0,0.6108]
[1757075605435,0.3608,112920.0,112860.0,1.956]
[1757075605436,0.6608,112920.0,112890.0,0.4493669]
[1757075605739,0.0205263,112930.0,112910.0,0.3608]
[1757075605940,0.3307163,112930.0,112900.0,1.956]
[1757075606133,0.1707163,112930.0,112920.0,0.3608]
[1757075606438,0.3607163,112930.0,112900.0,0.3608]
[1757075606629,0.7215163,112930.0,112900.0,0.3608]
[1757075606833,0.7215163,112930.0,112890.0,0.3608]
[1757075607032,0.3608,112910.0,112880.0,2.07296]
[1757075607334,0.3608,112910.0,112860.0,0.4493873]
[1757075607335,0.3608,112890.0,112860.0,0.3608]
[1757075607635,0.3608,112900.0,112880.0,0.3608]
[1757075607833,0.17,112900.0,112880.0,0.3608]
[1757075608028,0.17,112900.0,112890.0,0.3608]
[1757075608228,0.9608,112900.0,112860.0,1.59512]
[1757075608433,0.7108,112900.0,112870.0,0.3608]
[1757075608735,0.35,112900.0,112880.0,0.3608]
[1757075608937,0.03,112900.0,112880.0,0.4493749]
[1757075609135,0.03,112900.0,112880.0,0.3608]
[1757075609327,0.3608,112920.0,112880.0,0.3608]
[1757075609637,0.0001328,112900.0,112870.0,0.3608]
[1757075609828,0.7009328,112900.0,112890.0,0.0001328]
[1757075610026,0.4309328,112900.0,112890.0,0.0001328]
[1757075610229,0.3608,112920.0,112890.0,1.9336885]
[1757075610529,0.31,112920.0,112900.0,0.3608]
[1757075610731,0.31,112920.0,112890.0,0.4493683]
[1757075610926,0.31,112920.0,112890.0,0.3608]
[1757075611432,0.31,112920.0,112890.0,1.6836845]
[1757075611734,0.6708,112920.0,112890.0,0.3608]
[1757075611931,0.97425,112920.0,112880.0,0.3609328]
[1757075612135,0.72425,112920.0,112880.0,0.3609328]
[1757075612331,0.3608,112910.0,112880.0,0.3609328]
[1757075612631,0.3608,112890.0,112880.0,0.0001328]
[1757075612826,0.7208,112890.0,112880.0,0.0001328]
[1757075613037,0.7108,112890.0,112880.0,0.0001328]
[1757075613236,0.3609,112910.0,112880.0,0.6109328]
[1757075613442,0.3609,112910.0,112890.0,2.0444475]
[1757075613443,0.1801,112910.0,112890.0,2.0444475]
[1757075613642,0.0001,112910.0,112900.0,0.3608]
[1757075613840,0.0001,112920.0,112900.0,0.6993614]
[1757075614041,0.0001,112920.0,112910.0,0.3608]
[1757075614340,0.01,112920.0,112910.0,0.3608]
[1757075615241,0.38,112920.0,112910.0,0.3608]
[1757075615537,1.01425,112920.0,112900.0,0.0001328]
[1757075615842,0.76435,112920.0,112900.0,0.0001328]
[1757075616032,0.3608,112910.0,112900.0,0.0001328]
[1757075616238,0.7208,112910.0,112900.0,0.0001328]
[1757075616439,0.36,112910.0,112900.0,0.3609328]
[1757075616744,0.07,112910.0,112900.0,0.6994949]
[1757075617035,0.0001,112920.0,112910.0,0.0885542]
[1757075617229,0.0208163,112930.0,112910.0,0.4493538]
[1757075617436,0.0708163,112930.0,112920.0,0.3608]
[1757075617633,0.0207163,112930.0,112920.0,0.3608]
[1757075617838,0.0307163,112930.0,112920.0,0.3608]
[1757075618040,0.6007163,112930.0,112920.0,0.3608]
[1757075618232,0.05345,112920.0,112900.0,0.0001328]
[1757075618434,0.74435,112920.0,112900.0,0.0001328]
[1757075618634,0.6909,112920.0,112900.0,0.0001328]
[1757075618935,0.6108,112910.0,112900.0,0.0001328]
[1757075619127,0.6108,112910.0,112860.0,1.95572]
[1757075619128,0.9108,112910.0,112860.0,1.95572]
[1757075619334,0.3609,112900.0,112870.0,0.3608]
[1757075619536,0.7209,112900.0,112860.0,1.95572]
[1757075619736,0.3609,112890.0,112860.0,1.95572]
[1757075620038,0.0501,112890.0,112870.0,0.3608]
[1757075620336,0.0207163,112930.0,112880.0,0.3608]
[1757075620541,0.2507163,112930.0,112920.0,0.3608]
[1757075620738,0.0001,112950.0,112940.0,0.0885313]
[1757075621042,0.3608,112990.0,112940.0,2.31648]
[1757075621043,0.0001,112960.0,112940.0,2.31648]
[1757075621343,0.0001,112960.0,112940.0,1.95568]
[1757075621538,0.2501,112960.0,112940.0,0.3608]
[1757075621742,0.4801,112960.0,112930.0,0.3608]
[1757075621937,0.3608,112950.0,112930.0,1.59492]
[1757075622145,0.6709,112950.0,112930.0,1.95572]
[1757075622335,0.1101,112950.0,112940.0,1.95572]
[1757075622537,0.11,112950.0,112940.0,1.95572]
[1757075622736,0.11,112950.0,112940.0,1.95568]
[1757075623041,0.36,112950.0,112930.0,1.95568]
[1757075623343,0.1101,112950.0,112940.0,0.3608]
[1757075623545,0.11,112950.0,112940.0,1.9556]
[1757075623841,0.9208,112950.0,112920.0,1.71188]
[1757075624033,0.3608,112940.0,112910.0,0.3608]
[1757075624233,0.35,112940.0,112910.0,0.3608]
[1757075624435,0.02,112940.0,112930.0,0.4493393]
[1757075624742,0.00019,112980.0,112970.0,0.0885079]
[1757075624945,0.02032335,113020.0,112990.0,0.088492]
[1757075625246,0.33032335,113020.0,113000.0,0.3608]
[1757075625641,0.3608,113050.0,113010.0,0.6992764]
[1757075625945,0.00019,113080.0,113050.0,0.0884451]
[1757075626143,0.01019,113080.0,113070.0,0.3608]
[1757075626641,0.01019,113080.0,113050.0,0.3608]
[1757075626642,0.92493,113080.0,113050.0,1.59448]
[1757075626842,0.92493,113080.0,113050.0,0.3608]
[1757075627042,0.3608,113070.0,113030.0,2.07232]
[1757075627341,0.3608,113050.0,113020.0,0.3608]
[1757075627642,0.3608,113050.0,113010.0,0.3609]
[1757075627643,0.3608,113030.0,113000.0,0.3608]
[1757075627840,0.0801,113030.0,113020.0,0.4492686]
[1757075628037,0.3608,113060.0,113020.0,0.3607]
[1757075628342,0.31,113060.0,113020.0,0.3607]
[1757075628538,0.6708,113060.0,113020.0,1.95494]
[1757075628740,0.3608,113050.0,113020.0,1.95494]
[1757075628943,0.33,113050.0,113020.0,1.95494]
[1757075629241,0.6909,113050.0,113020.0,1.95494]
[1757075629745,0.0001,113050.0,113030.0,0.3608]
[1757075630041,0.0701,113050.0,113030.0,0.3608]
[1757075630242,0.0701,113050.0,113030.0,1.59412]
[1757075630243,0.3601,113050.0,113030.0,1.59412]
[1757075630439,0.05394,113040.0,113010.0,0.3609]
[1757075630634,0.74484,113040.0,113020.0,1.594]
[1757075630837,0.74484,113040.0,113020.0,1.9548]
[1757075630838,0.1001,113040.0,113020.0,1.9548]
[1757075631041,0.05404,113040.0,113020.0,1.594]
[1757075631241,0.73484,113040.0,113020.0,1.594]
[1757075631641,0.0001,113040.0,113030.0,0.449261]
[1757075631843,0.0001,113050.0,113030.0,0.8100582]
[1757075632141,0.0001,113050.0,113040.0,0.3608]
[1757075632342,0.0001,113060.0,113040.0,0.3608]
[1757075632546,0.0001,113060.0,113040.0,2.0430928]
[1757075632850,0.0001,113060.0,113050.0,0.4492457]
[1757075633038,0.0001,113070.0,113050.0,0.3608]
[1757075633437,0.6409,113070.0,113050.0,0.3608]
[1757075633637,0.2801,113070.0,113050.0,0.3608]
[1757075634041,0.6409,113070.0,113050.0,0.3608]
[1757075634753,0.2801,113070.0,113050.0,0.3608]
[1757075635553,0.6108,113060.0,113030.0,0.3609]
[1757075635754,0.0001,113060.0,113050.0,0.7216]
[1757075635950,0.05413,113080.0,113050.0,1.0599445]
[1757075636156,0.00019,113080.0,113070.0,0.0884302]
[1757075636351,0.00019,113080.0,113070.0,0.4492302]
[1757075637049,0.00019,113080.0,113070.0,0.3608]
[1757075637548,0.00019,113080.0,113060.0,1.95418]
[1757075637743,0.00019,113080.0,113070.0,0.4492302]
[1757075637944,0.00019,113080.0,113070.0,0.3608]
[1757075638154,0.55019,113080.0,113070.0,0.3608]
[1757075638343,0.55019,113080.0,113060.0,1.59338]
[1757075638541,0.71493,113080.0,113050.0,3.66438]
[1757075638740,0.3608,113070.0,113050.0,0.0001]
[1757075638955,0.34,113070.0,113050.0,0.3608]
[1757075639155,0.3401,113070.0,113050.0,0.3609]
[1757075639451,0.9509,113070.0,113050.0,0.0001]
[1757075639647,0.7009,113070.0,113050.0,0.0001]
[1757075639842,0.25,113060.0,113050.0,0.0001]
[1757075640047,0.58,113060.0,113040.0,1.59332]
[1757075640250,0.3301,113060.0,113050.0,0.3608]
[1757075640461,0.33,113060.0,113050.0,0.3608]
[1757075640755,0.33,113060.0,113040.0,1.59328]
[1757075640756,0.58,113060.0,113040.0,1.59328]
[1757075640953,0.3608,113050.0,113040.0,1.59318]
[1757075641157,0.9208,113050.0,113040.0,1.59308]
[1757075641457,0.05394,113040.0,113030.0,0.0002]
[1757075641752,0.97474,113040.0,112970.0,2.0423482]
[1757075641959,0.3608,112990.0,112970.0,1.69538272]
[1757075642158,0.3608,112990.0,112970.0,0.01383442]
[1757075642159,0.3608,112980.0,112970.0,0.01383442]
[1757075642344,0.3608,112980.0,112910.0,0.43008719]
[1757075642345,0.9708,112980.0,112910.0,0.43008719]
[1757075642551,0.05394,112920.0,112880.0,1.95388]
[1757075642746,0.74474,112920.0,112910.0,0.0001]
[1757075642955,0.6908,112920.0,112890.0,0.3609]
[1757075643161,0.3608,112910.0,112880.0,1.59318]
[1757075643357,0.3608,112900.0,112880.0,1.59308]
[1757075643661,0.3608,112890.0,112870.0,1.59316]
[1757075643958,0.14231,112890.0,112870.0,0.4493844]
[1757075644253,0.41474,112920.0,112880.0,1.84316]
[1757075644451,0.3608,112910.0,112880.0,1.95396]
[1757075644651,0.3908,112910.0,112890.0,0.0885705]
[1757075644852,0.03,112910.0,112890.0,0.4493705]
[1757075645053,0.03,112910.0,112900.0,0.0885632]
[1757075645248,0.3608,112940.0,112930.0,0.0885397]
[1757075645453,0.3608,112950.0,112940.0,0.0885318]
[1757075645659,0.38166727,112970.0,112950.0,0.088522]
[1757075645960,0.38166727,112970.0,112960.0,1.59352]
[1757075646157,0.41166727,112970.0,112960.0,1.9320361]
[1757075646357,0.05086727,112970.0,112950.0,0.3608]
[1757075646660,0.05086727,112970.0,112960.0,1.9321572]
[1757075646661,0.02086727,112970.0,112960.0,1.9321572]
[1757075646862,0.02086727,112970.0,112960.0,0.3608]
[1757075647067,0.05394,112960.0,112940.0,1.59374]
[1757075647251,0.38166727,112970.0,112940.0,1.95444]
[1757075647452,0.68166727,112970.0,112940.0,2.2929717]
[1757075647647,0.32086727,112970.0,112940.0,2.2929717]
[1757075647859,0.68166727,112970.0,112940.0,0.3608]
[1757075648061,0.6608,112970.0,112940.0,0.6108]
[1757075648252,0.0001,113020.0,112980.0,0.0884963]
[1757075648253,0.3609,113020.0,112980.0,0.0884963]
[1757075648458,0.7109,113020.0,113000.0,0.3608]
[1757075648658,0.3001,113020.0,113000.0,0.3608]
[1757075648857,0.3001,113020.0,113010.0,0.3608]
[1757075649059,0.3608,113010.0,112990.0,0.0001]
[1757075649253,0.3608,113010.0,112970.0,0.3608]
[1757075649254,0.05394,113000.0,112970.0,0.3608]
[1757075649560,0.3608,112980.0,112910.0,2.85984]
[1757075649761,0.3608,112950.0,112930.0,0.3608]
[1757075649953,0.05,112950.0,112930.0,0.3608]
[1757075650160,0.05,112950.0,112940.0,2.0430532]
[1757075650355,0.05,112950.0,112940.0,2.2930532]
[1757075650963,0.3609,112990.0,112940.0,0.3608]
[1757075651162,0.3608,112980.0,112960.0,0.0885167]
[1757075651464,0.7208,112980.0,112950.0,2.043003]
[1757075651656,0.4308,112980.0,112960.0,0.449311]
[1757075651856,0.4308,112980.0,112940.0,0.3608]
[1757075651857,0.05394,112960.0,112940.0,0.3608]
[1757075652058,0.7208,112960.0,112950.0,1.59372]
[1757075652257,0.4108,112960.0,112950.0,0.0885254]
[1757075652464,0.58,112960.0,112940.0,0.3608]
[1757075652661,0.75474,112960.0,112950.0,1.59372]
[1757075652965,0.4208,112960.0,112950.0,1.59372]
[1757075653358,0.7108,112960.0,112950.0,1.59372]
[1757075653559,0.4408,112960.0,112950.0,1.6822454]
[1757075653764,0.7308,112960.0,112950.0,1.59372]
[1757075653965,0.9708,112960.0,112950.0,1.59376]
[1757075654166,0.9008,112960.0,112950.0,1.59376]
[1757075654365,0.6508,112960.0,112950.0,1.5938]
[1757075654671,0.7908,112960.0,112950.0,1.5938]
[1757075654861,0.5408,112960.0,112950.0,1.5938]
[1757075655061,0.84474,112960.0,112940.0,1.5938]
[1757075655267,0.3608,112950.0,112940.0,1.5938]
[1757075655465,0.4108,112950.0,112940.0,1.59384]
[1757075655777,0.3608,112960.0,112940.0,2.2931732]
[1757075655970,0.02,112960.0,112950.0,0.6993254]
[1757075656271,0.0001,112990.0,112980.0,0.0885019]
[1757075656460,0.0001,113000.0,112980.0,1.71076]
[1757075656665,0.4209,113000.0,112980.0,3.30464]
[1757075656974,0.4209,113000.0,112990.0,1.682374]
[1757075657166,0.06,113000.0,112990.0,2.293174]
[1757075657469,0.0001,113010.0,113000.0,0.0884862]
[1757075657673,0.0001,113020.0,113010.0,0.0884784]
[1757075657867,0.0001,113030.0,113020.0,0.0884705]
[1757075658063,0.38111226,113040.0,113020.0,0.0884705]
[1757075658064,0.38121226,113040.0,113030.0,0.0884628]
[1757075658263,0.71111226,113040.0,113030.0,1.59388]
[1757075658460,0.6908,113040.0,113030.0,1.59388]
[1757075658665,0.9408,113040.0,113010.0,0.0884742]
[1757075658866,0.3608,113030.0,113000.0,0.4492804]
[1757075659064,0.3608,113020.0,112980.0,1.799257]
[1757075659262,0.3608,113000.0,112970.0,0.3608]
[1757075659465,0.3608,112980.0,112970.0,1.59372]
[1757075659873,0.3608,112980.0,112970.0,1.6822298]
[1757075660060,0.05544,113000.0,112970.0,2.20452]
[1757075660061,0.3609,113000.0,112970.0,2.20452]
[1757075660368,0.0001,112990.0,112980.0,0.449302]
[1757075660672,0.0002,113000.0,112980.0,0.7216]
[1757075660871,0.0002,113000.0,112990.0,0.4492941]
[1757075661172,0.6508,113000.0,112980.0,0.4494006]
[1757075661368,0.361,113000.0,112990.0,1.6821742]
[1757075661564,0.361,113010.0,112990.0,1.59368]
[1757075661760,0.561,113010.0,113000.0,1.59368]
[1757075661966,0.8108,113010.0,112990.0,1.59378]
[1757075662273,0.811,113010.0,112990.0,1.59378]
[1757075662566,0.561,113010.0,112990.0,1.59378]
[1757075662768,0.561,113010.0,112990.0,1.6822701]
[1757075662966,0.2002,113010.0,112990.0,0.0001]
[1757075663274,0.2002,113010.0,113000.0,1.59364]
[1757075663575,0.5608,113010.0,113000.0,1.5936]
[1757075663962,0.8108,113010.0,112990.0,1.5937]
[1757075664165,0.66624,113000.0,112990.0,0.0001]
[1757075664364,1.02624,113000.0,112980.0,1.5937]
[1757075664567,0.3608,112990.0,112980.0,1.5936]
[1757075664766,0.4508,112990.0,112980.0,1.5936]
[1757075664969,0.4208,112990.0,112980.0,1.5936]
[1757075665174,0.3608,112990.0,112980.0,1.5936]
[1757075665369,0.6508,112990.0,112980.0,1.5936]
[1757075665575,0.3608,112990.0,112980.0,1.5936]
[1757075665868,0.5608,112990.0,112980.0,1.5936]
[1757075666573,0.8108,112990.0,112980.0,1.5936]
[1757075666776,0.5608,112990.0,112980.0,1.9321019]
[1757075666971,0.3808,112990.0,112980.0,1.9321019]
[1757075667477,0.0002,113000.0,112990.0,0.0884941]
[1757075667772,0.3608,113030.0,112980.0,0.3609]
[1757075667773,0.0002,113010.0,112980.0,0.3609]
[1757075667967,0.661,113010.0,112990.0,1.5936]
[1757075668276,0.41624,113000.0,112990.0,0.0001]
[1757075668570,0.97624,113000.0,112980.0,1.5937]
[1757075668774,0.3608,112990.0,112980.0,1.5936]
[1757075668969,0.3608,112990.0,112980.0,1.6821019]
[1757075669172,0.6108,112990.0,112980.0,1.5936]
[1757075669469,0.6108,112990.0,112980.0,1.6820619]
[1757075669470,0.3608,112990.0,112980.0,1.6820619]
[1757075669663,0.6508,112990.0,112970.0,0.3608]
[1757075669868,0.6809,112990.0,112970.0,1.95436]
[1757075670176,0.6809,112990.0,112970.0,2.0428697]
[1757075670370,0.4209,112990.0,112970.0,2.0428651]
[1757075670571,0.3609,112990.0,112970.0,1.95436]
[1757075670773,0.6609,112990.0,112970.0,2.0428657]
[1757075670970,0.3608,112980.0,112950.0,0.4494243]
[1757075671166,0.3608,112960.0,112940.0,1.7107]
[1757075671475,0.3709,112960.0,112950.0,1.59356]
[1757075671676,0.4308,112960.0,112940.0,1.7991298]
[1757075671979,0.0001,112960.0,112950.0,1.6820853]
[1757075672278,0.3609,112970.0,112960.0,0.0885175]
[1757075672465,0.01,112970.0,112960.0,0.4493175]
[1757075672663,0.0001,112980.0,112970.0,0.0885102]
[1757075672864,0.3608,112980.0,112960.0,1.5936]
[1757075673069,0.6609,112980.0,112960.0,1.5886]
[1757075673272,0.3608,112970.0,112940.0,2.1600308]
[1757075673471,0.6609,112970.0,112950.0,1.5936]
[1757075673774,0.6609,112970.0,112960.0,0.0885181]
[1757075673775,0.0001,112970.0,112960.0,0.0885181]
[1757075673978,0.11,112970.0,112960.0,1.6821138]
[1757075674269,0.6308,112970.0,112960.0,1.6821181]
[1757075674476,0.9408,112970.0,112940.0,1.7992331]
[1757075674670,0.3608,112950.0,112940.0,1.7106]
[1757075674971,0.3608,112950.0,112940.0,3.3927737]
[1757075675367,0.3609,112960.0,112950.0,0.0885258]
[1757075675564,0.3609,112970.0,112940.0,3.7535713]
[1757075675764,0.6709,112970.0,112960.0,0.088518]
[1757075675963,0.4208,112970.0,112950.0,0.0885209]
[1757075676170,0.3609,112970.0,112960.0,0.088518]
[1757075676370,0.4108,112970.0,112960.0,0.088518]
[1757075676576,0.07,112970.0,112960.0,0.699318]
[1757075676772,0.28,112970.0,112960.0,2.0430341]
[1757075676976,0.3609,112980.0,112970.0,0.0885096]
[1757075677180,0.02,112980.0,112970.0,0.4493096]
[1757075677477,0.31,112980.0,112970.0,1.59372]
[1757075677684,0.31,112980.0,112970.0,1.6822296]
[1757075677685,0.02,112980.0,112970.0,1.6822296]
[1757075677876,0.32,112980.0,112970.0,1.6822296]
[1757075678068,0.3609,112990.0,112960.0,0.3608]
[1757075678269,0.3608,112970.0,112950.0,0.0001]
[1757075678474,0.05544,112950.0,112930.0,0.0001]
[1757075678675,0.05544,112920.0,112910.0,0.0001]
[1757075678880,1.05666177,112920.0,112900.0,0.10937197]
[1757075679078,0.3608,112910.0,112900.0,0.10937197]
[1757075679282,0.4208,112910.0,112900.0,0.10937197]
[1757075679482,0.02,112910.0,112900.0,0.19793647]
[1757075679684,0.3609,112920.0,112900.0,0.44793247]
[1757075679875,0.0001,112920.0,112910.0,1.59372]
[1757075680175,0.34,112920.0,112910.0,1.59372]
[1757075680380,0.99624,112920.0,112900.0,0.10937197]
[1757075680579,0.6108,112910.0,112900.0,0.10937197]
[1757075680884,0.05544,112890.0,112880.0,0.0001]
[1757075681085,1.10704,112890.0,112870.0,0.15624568]
[1757075681385,0.3608,112880.0,112870.0,0.15624568]
[1757075681682,0.7208,112880.0,112870.0,0.15624568]
[1757075681875,0.34,112880.0,112870.0,0.15624568]
[1757075682183,0.14,112880.0,112870.0,0.15624568]
[1757075682378,0.32,112880.0,112870.0,1.75020568]
[1757075682581,0.6808,112880.0,112870.0,2.00020568]
[1757075682780,0.3608,112880.0,112870.0,2.00020568]
[1757075682977,0.2,112880.0,112870.0,0.40624568]
[1757075683178,0.2,112880.0,112870.0,2.36100568]
[1757075683478,0.3608,112920.0,112880.0,0.08858]
[1757075683681,0.3608,112920.0,112910.0,0.3608]
[1757075683682,0.02,112920.0,112910.0,0.3608]
[1757075683884,0.38112105,112940.0,112910.0,1.59412]
[1757075684180,0.34032105,112940.0,112930.0,0.3608]
[1757075684387,0.02070334,112970.0,112960.0,0.0885178]
[1757075684586,0.04346571,112970.0,112960.0,2.71039899]
[1757075684777,0.00346571,112970.0,112960.0,4.02696]
[1757075685184,0.28783571,112970.0,112960.0,1.71112]
[1757075685377,0.28783571,112970.0,112960.0,3.30532]
[1757075685580,0.53783571,112970.0,112960.0,1.71112]
[1757075685786,1.25863571,112970.0,112960.0,3.30532]
[1757075686083,0.69783571,112970.0,112960.0,3.30532]
[1757075686290,0.80863571,112970.0,112960.0,3.3938376]
[1757075686472,0.64863571,112970.0,112960.0,1.71112]
[1757075686677,0.64863571,112970.0,112960.0,3.30528]
[1757075686878,0.96426571,112970.0,112940.0,1.59426]
[1757075687078,0.3608,112950.0,112940.0,1.59416]
[1757075687280,0.3608,112950.0,112930.0,1.59416]
[1757075687281,0.74668,112950.0,112930.0,1.59416]
[1757075687479,0.3608,112940.0,112930.0,1.59416]
[1757075687686,0.5908,112940.0,112930.0,1.59416]
[1757075687883,0.02,112940.0,112930.0,1.59416]
[1757075688085,0.41668,112950.0,112930.0,2.2935009]
[1757075688282,0.15,112950.0,112930.0,1.95496]
[1757075688480,0.3608,112960.0,112940.0,0.25]
[1757075688782,0.00346571,112970.0,112960.0,0.0885177]
[1757075688987,0.00346571,112970.0,112960.0,2.0434377]
[1757075689287,0.05588,112950.0,112890.0,1.59412]
[1757075689587,0.7216,112900.0,112890.0,1.59412]
[1757075689793,0.05588,112890.0,112870.0,1.75036568]
[1757075690084,0.3608,112890.0,112870.0,1.75036568]
[1757075690282,0.3608,112890.0,112870.0,2.11116568]
[1757075690475,0.3608,112900.0,112880.0,0.0885806]
[1757075690678,0.3608,112890.0,112870.0,1.83894918]
[1757075690875,0.3608,112900.0,112890.0,0.0885728]
[1757075691086,0.3908,112900.0,112890.0,0.0885728]
[1757075691287,0.3608,112910.0,112900.0,0.088565]
[1757075691591,0.3608,112910.0,112900.0,1.682765]
[1757075691787,0.3608,112910.0,112900.0,1.932765]
[1757075692094,0.3608,112920.0,112900.0,0.0885611]
[1757075692289,0.3608,112910.0,112880.0,0.088577]
[1757075692490,0.3608,112900.0,112890.0,1.59424]
[1757075692886,0.3608,112910.0,112900.0,0.088565]
[1757075693085,0.2412299,112920.0,112910.0,0.0885572]
[1757075693282,0.02,112920.0,112910.0,0.6993572]
[1757075693586,0.3609,112960.0,112940.0,0.0885337]
[1757075693782,0.2001,112960.0,112950.0,1.59428]
[1757075693986,0.02,112960.0,112950.0,1.682802]
[1757075694188,0.3608,112960.0,112950.0,1.59428]
[1757075694487,0.9108,112960.0,112910.0,0.3609]
[1757075694790,0.3608,112950.0,112920.0,1.6828256]
[1757075694991,0.3608,112950.0,112930.0,0.4493372]
[1757075695294,0.3609,112960.0,112930.0,0.449338]
[1757075695590,0.3609,112960.0,112940.0,1.59424]
[1757075695591,0.3608,112950.0,112940.0,1.59424]
[1757075695792,1.07748,112950.0,112940.0,1.59424]
[1757075696588,0.79748,112950.0,112940.0,1.59424]
[1757075696792,1.07748,112950.0,112910.0,0.3608]
[1757075696995,0.3608,112930.0,112920.0,1.6827872]
[1757075697196,0.3608,112930.0,112920.0,1.59424]
[1757075697692,0.3608,112940.0,112920.0,1.6827862]
[1757075697991,0.3608,112930.0,112900.0,2.072]
[1757075698193,0.3608,112920.0,112910.0,1.682795]
[1757075698384,0.3608,112940.0,112920.0,0.0885462]
[1757075698586,0.3608,112930.0,112900.0,2.1605616]
[1757075698790,0.3608,112930.0,112910.0,1.59424]
[1757075698991,0.3608,112940.0,112920.0,0.0885472]
[1757075699292,0.3608,112940.0,112930.0,1.59424]
[1757075699491,0.7208,112940.0,112930.0,1.59424]
[1757075700292,0.3609,112960.0,112930.0,1.9327789]
[1757075700595,0.1801,112960.0,112950.0,0.4493232]
[1757075700796,0.3608,113020.0,112980.0,0.0884966]
[1757075701001,0.6908,113020.0,112990.0,1.59424]
[1757075701192,0.6908,113020.0,113000.0,0.0884793]
[1757075701497,0.6908,113020.0,113010.0,1.95504]
[1757075701498,0.06,113020.0,113010.0,1.95504]
[1757075701691,0.06,113020.0,113010.0,1.6827165]
[1757075701996,0.06,113020.0,113010.0,1.59424]
[1757075702190,0.06,113020.0,113000.0,0.3609]
[1757075702391,0.0002,113020.0,113010.0,1.6827165]
[1757075702595,0.00039,113030.0,113020.0,0.0884687]
[1757075702791,0.00019,113030.0,113020.0,0.4492687]
[1757075703199,0.00019,113030.0,113020.0,0.6992687]
[1757075703891,0.00019,113030.0,113010.0,0.3609]
[1757075704092,0.00039,113030.0,113020.0,1.59408]
[1757075704297,0.00019,113030.0,113020.0,1.95488]
[1757075704597,0.00019,113030.0,113020.0,2.293149]
[1757075704994,0.0002,113040.0,113030.0,0.0884607]
[1757075705200,0.06819368,113060.0,113040.0,0.0884529]
[1757075705201,0.0002,113050.0,113040.0,0.0884529]
[1757075705396,0.4108,113050.0,113040.0,1.59376]
[1757075705596,0.9108,113050.0,113030.0,1.7107]
[1757075705799,0.0002,113050.0,113040.0,1.59376]
[1757075706095,0.8608,113050.0,113040.0,1.59376]
[1757075706294,0.1443329,113040.0,113030.0,3.30446]
[1757075706497,0.0884607,113030.0,113020.0,0.0001]
[1757075706697,0.6508,113030.0,113010.0,0.0001]
[1757075706902,0.421,113030.0,113010.0,0.0885764]
[1757075707199,0.2902,113030.0,113010.0,0.0001]
[1757075707395,0.651,113030.0,113010.0,0.0001]
[1757075707699,0.0602,113030.0,113020.0,1.6820286]
[1757075707993,0.0002,113040.0,113030.0,0.0884607]
[1757075708195,0.0002,113050.0,113030.0,0.449259]
[1757075708402,0.7994457,113050.0,113030.0,0.3609]
[1757075708694,0.7994457,113050.0,113030.0,1.59362]
[1757075708695,0.5051329,113040.0,113030.0,1.59362]
[1757075708896,1.1051329,113040.0,113030.0,1.59352]
[1757075709297,1.01668,113040.0,113030.0,1.59352]
[1757075709597,1.1051329,113040.0,113030.0,1.59352]
[1757075709902,0.0884607,113030.0,113020.0,0.0001]
[1757075710090,0.0884686,113020.0,113010.0,1.59354]
[1757075710291,0.0884764,113010.0,113000.0,0.0001]
[1757075710600,0.0884842,113000.0,112990.0,0.0001]
[1757075710801,0.0884921,112990.0,112980.0,1.5934]
[1757075711002,0.7492921,112990.0,112980.0,1.5934]